Cogmind - Beta 13 @@@ ROGUE MODE // 2024.04.14 @ 19:56:33 Player: Pitifulpancake Result: Destroyed by G-34 Mercenary with Small Laser Performance ------------- Evolutions (0) 0 Regions Visited (1) 200 Robots Destroyed (16) 80 Value Destroyed (340) 340 Prototype IDs (3) 60 Alien Tech Used (0) 0 Bonus (0) 0 TOTAL SCORE: 680 Bonus ------- None Cogmind --------- Core Integrity 0/250 Matter 246/300 Energy 250/250 System Corruption 0% Temperature Cool (18) Movement Walking (190) Ox1 Location -10/Materials Parts ------- > --- POWER (1) -------- Ion Engine > --- PROPULSION (2) --- Aluminum Leg Aluminum Leg > --- UTILITY (2) ------ Small Storage Unit Medium Armor Plating > --- WEAPON (2) ------- Assault Rifle Assault Rifle > --- INVENTORY (8) ---- Ion Engine Light Nuclear Core Medium Armor Plating Medium Armor Plating Medium Armor Plating Light Assault Rifle Light Assault Rifle Datajack Peak State ------------ > --- POWER ------------ Light Nuclear Core > --- PROPULSION ------- Aluminum Leg Aluminum Leg > --- UTILITY ---------- Small Storage Unit Hacking Suite > --- WEAPON ----------- Datajack Mining Claw > --- INVENTORY -------- Ion Engine Ion Engine Light Treads Light Treads Medium Matter Pod Assault Rifle Light Assault Rifle Light Assault Rifle [Rating: 11] Favorites ----------- Power Ion Engine Engine Ion Engine Power Core Light Nuclear Core Propulsion Aluminum Leg Treads Light Treads Leg Aluminum Leg Utility Small Storage Unit Device Heat Sink Storage Small Storage Unit Processor Targeting Computer Hackware Hacking Suite Protection Medium Armor Plating Weapon Assault Rifle Ballistic Gun Assault Rifle Slashing Weapon Mining Claw Special Melee Weapon Datajack Build | -11 -10 ------- Run | Yrd Mat Slots Evolved . | . . Power . | . . Propulsion . | . . Utility . | . . Weapon . | . . Parts Attached 29 | 8 21 Power 6 | 1 5 Engine 5 | 1 4 Core 1 | . 1 Reactor . | . . Propulsion 10 | 2 8 Treads 2 | . 2 Leg 8 | 2 6 Wheel . | . . Hover . | . . Flight . | . . Utility 6 | 2 4 Device 1 | . 1 Storage 2 | 2 . Processor 1 | . 1 Hackware 1 | . 1 Protection 1 | . 1 Artifact . | . . Weapon 7 | 3 4 Energy Gun . | . . Energy Cannon . | . . Ballistic Gun 5 | 3 2 Ballistic Cannon . | . . Launcher . | . . Special Weapon . | . . Impact Weapon . | . . Slashing Weapon 1 | . 1 Piercing Weapon . | . . Special Melee Weapon 1 | . 1 Unidentified Prototypes . | . . Parts Lost 5 | . 5 Power 1 | . 1 Propulsion 3 | . 3 Utility 1 | . 1 Weapon . | . . Highest Loss Streak 4 | . 4 To Critical Strikes . | . . Average Slot Usage (%) 97 | . 97 Engine 10 | . 10 Core 3 | . 3 Treads 1 | . 1 Leg 26 | . 26 Device 1 | . 1 Storage 16 | . 16 Processor 2 | . 2 Hackware 1 | . 1 Protection 5 | . 5 Ballistic Gun 15 | . 15 Slashing Weapon 5 | . 5 Special Melee Weapon 6 | . 6 Naked Turns . | . . Heaviest Build 21 | 14 21 Greatest Support 40 | 20 40 Greatest Overweight (x) 2 | 2 2 Average Overweight (x) . | . . Largest Inventory Capacity 8 | 8 8 Average Capacity 7 | 7 8 Most Carried 8 | 5 8 Average Carried 6 | 3 7 Final Capacity 8 | 8 8 Final Carried 8 | 5 8 Class Distribution -------------------- 100% | Mutant Dominant Class ---------------- Mutant | -10/Materials Resources | -11 -10 ----------- Run | Yrd Mat Matter Collected 679 | 398 281 Remotely . | . . Salvage Created 522 | 118 404 Parts 36 | 7 29 Haulers Intercepted . | . . Recyclers Shooed . | . . Parts Field Recycled . | . . Retrieved Matter . | . . Parts Self-Destructed . | . . Prevented . | . . Kills | -11 -10 ------- Run | Yrd Mat Combat Hostiles Destroyed 11 | . 11 Melee 6 | . 6 Guns 5 | . 5 Classes Destroyed 5 | 2 3 Worker 3 | 2 1 Recycler 1 | 1 . Operator 1 | . 1 Swarmer 3 | . 3 Grunt 8 | . 8 Best Kill Streak 6 | 2 6 Combat Bots Only 5 | . 5 Max Kills in Single Turn 1 | 1 1 Gunslinging . | . . Exploded . | . . Melee 1 | . 1 Uniques/NPCs Destroyed . | . . Combat | -11 -10 -------- Run | Yrd Mat Hostile Shots Fired 116 | . 116 Missed 25 | . 25 Damage Taken 1224 | . 1224 Core 252 | . 252 Absorbed by Shields . | . . Core Remaining (%) 100 | 100 . Volleys Fired 34 | 9 25 Largest 2 | 2 2 Hottest 40 | 40 40 Shots Fired 68 | 18 50 Gun 68 | 18 50 Cannon . | . . Launcher . | . . Special . | . . Kinetic 68 | 18 50 Thermal . | . . Explosive . | . . Electromagnetic . | . . Robot Hit Streak 8 | 4 8 Robot Miss Streak 4 | 4 4 Penetration Max . | . . Secondary Targets 1 | . 1 Max Gunslinging Chain 1 | . 1 Shots Hit Robots 66 | 9 57 Core Hits 25 | 7 18 Critical Kills 1 | . 1 Critical Parts Destroyed 1 | . 1 Critical Strikes 2 | . 2 Destroy 2 | . 2 Melee Attacks 39 | . 39 Impact . | . . Slashing 30 | . 30 Piercing . | . . Sneak Attacks 8 | . 8 Combat Hostiles . | . . Follow-up Attacks . | . . Damage Inflicted 993 | 78 915 Guns 424 | 78 346 Cannons . | . . Explosions . | . . Melee 569 | . 569 Ramming . | . . Kinetic 424 | 78 346 Thermal . | . . Explosive . | . . Electromagnetic . | . . Impact . | . . Slashing 569 | . 569 Piercing . | . . Highest Corruption . | . . Average Corruption . | . . Corruption Purged . | . . Corruption Blocked . | . . Overload Shots . | . . Overflow Damage 85 | . 85 Projectiles . | . . Explosions . | . . Melee 85 | . 85 Knockbacks . | . . Impact . | . . Kinetic . | . . Secondary . | . . Self-Inflicted Damage . | . . Shots . | . . Rammed . | . . Targets Rammed . | . . Kicked . | . . Crushed . | . . Highest Temperature 12 | . 12 Average Temperature 3 | . 3 Received Heat Transfer 441 | . 441 Siege Activations . | . . Robots Corrupted . | . . Combat Hostiles . | . . Parts Fried . | . . Impact Corruptions . | . . Robots Melted . | . . Combat Hostiles . | . . Parts Melted . | . . Heat Transferred . | . . Parts Sabotaged . | . . Parts Stolen . | . . Parts Stripped . | . . Power Chain Reactions . | . . Alert | -11 -10 ------- Run | Yrd Mat Peak Influence 158 | 15 158 Initial 9 | . 9 Average 49 | 3 55 Maximum Alert Level . | . . Low Security (%) 100 | 100 100 Level 1 . | . . Level 2 . | . . Level 3 . | . . Level 4 . | . . Level 5 . | . . High Security . | . . Max Security . | . . Squads Dispatched 6 | . 6 Investigation 4 | . 4 Extermination . | . . Reinforcement 2 | . 2 Assault . | . . Garrison . | . . Intercept . | . . Searches Triggered . | . . Construction Impeded . | . . Haulers Reinforced . | . . Active Scanning Responses . | . . Cargo Convoy Interrupts . | . . Stealth | -11 -10 --------- Run | Yrd Mat Distress Signals . | . . Communications Jammed . | . . Distress Signals . | . . Times Spotted 21 | . 21 Peak Tracking Total 5 | . 5 Tactical Retreats . | . . Traps | -11 -10 ------- Run | Yrd Mat Traps Triggered 1 | . 1 Indirectly . | . . Trap Hack Attempts . | . . Triggered . | . . Disarmed . | . . Reprogrammed . | . . Reused . | . . Traps Extracted . | . . Installed . | . . Triggered . | . . Machines | -11 -10 ---------- Run | Yrd Mat Machines Disabled . | . . Max in Single Turn . | . . Machines Repaired . | . . Machines Dismantled . | . . Machines Sabotaged . | . . Overloaded Fab Kills . | . . Hacking | -11 -10 --------- Run | Yrd Mat Machines Accessed 4 | . 4 Terminals 4 | . 4 Fabricators . | . . Repair Stations . | . . Recycling Units . | . . Scanalyzers . | . . Garrison Access . | . . Total Hacks 14 | . 14 Successful 6 | . 6 Failed 8 | . 8 Catastrophic 1 | . 1 Database Lockouts . | . . Manual 8 | . 8 Terminals 14 | . 14 Fabricators . | . . Repair Stations . | . . Recycling Units . | . . Scanalyzers . | . . Garrison Access . | . . Terminal Hacks 6 | . 6 Prototype ID Bank 1 | . 1 Emergency Access Points 1 | . 1 Scanalyzer Index 1 | . 1 Locate Traps 2 | . 2 Zone Layout 1 | . 1 Fabricator Hacks . | . . Repair Station Hacks . | . . Recycling Unit Hacks . | . . Scanalyzer . | . . Garrison Access Hacks . | . . Unauthorized Hacks . | . . Terminals . | . . Fabricators . | . . Repair Stations . | . . Recycling Units . | . . Scanalyzers . | . . Garrison Access . | . . Data Cores Recovered . | . . Used . | . . Hacking Detections 4 | . 4 Full Trace Events 3 | . 3 Feedback Events . | . . Feedback Blocked . | . . Robot Schematics Acquired . | . . Robots Built . | . . Authchips . | . . Time . | . . Total Robot Build Rating . | . . Part Schematics Acquired . | . . Parts Built . | . . Authchips . | . . Time . | . . Total Part Build Rating . | . . Parts Repaired . | . . Time . | . . Parts Recycled . | . . Recycled Matter . | . . Retrieved Matter . | . . Retrieved Components . | . . Parts Scanalyzed . | . . Part Schematics Acquired . | . . Parts Damaged . | . . Bothacking | -11 -10 ------------ Run | Yrd Mat Used RIF Installer . | . . Robots Hacked 5 | . 5 Non-combat 3 | . 3 Combat 2 | . 2 Robot Hacks Applied 8 | . 8 parse_system 5 | . 5 no_distress 2 | . 2 check_alert 1 | . 1 Relay Couplers Released . | . . Fabnet Peak Effective % . | . . Robots Rewired . | . . Allies Hacked . | . . Hacks Repelled . | . . Allies | -11 -10 -------- Run | Yrd Mat Total Allies . | . . Largest Group . | . . Highest-Rated Group . | . . Highest-Rated Ally . | . . Total Orders . | . . Ally Attacks . | . . Total Damage . | . . Kills . | . . Allies Corrupted . | . . Allies Melted . | . . Intel | -11 -10 ------- Run | Yrd Mat Robot Analysis Total . | . . Derelict Logs Recovered . | . . Drone Launches . | . . Drone Recoveries . | . . Exploration | -11 -10 ------------- Run | Yrd Mat Turns Passed 1275 | 164 1111 Spaces Moved 582 | 100 482 Core 15 | 15 . Treads 5 | . 5 Legs 562 | 85 477 Wheels . | . . Hover . | . . Flight . | . . Fastest Speed 50 | 50 120 Average Speed 131 | 124 132 Slowest Speed 260 | 190 260 Overloaded Moves . | . . Propulsion Burnouts . | . . Robots Hopped . | . . Cave-ins Triggered 1 | . 1 Exploration Rate (%) 30 | 7 54 Regions Visited 1 Branch Regions . Pre-discovered Areas . | . . Known Exits Taken . | . . Unknown Exits Taken 1 | 1 . Scrap Searched . | . . Spaces Dug . | . . Terrain Destroyed . | . . Melee . | . . Projectile . | . . AOE . | . . Terrain Rammed . | . . Walls Destroyed . | . . Machines Disabled . | . . Actions | -11 -10 --------- Run | Yrd Mat Total 958 | 121 837 Wait 251 | . 251 Move 581 | 99 482 Hop . | . . Pick Up 11 | 5 6 Fast Attach 14 | 7 7 Attach 3 | . 3 Detach 2 | . 2 Swap 12 | 1 11 Drop 11 | . 11 Fire 34 | 9 25 Melee 39 | . 39 Ram . | . . Kick . | . . Crush . | . . Escape Stasis . | . . Rewire . | . . Trap . | . . Miscellaneous . | . . Route ------- -11/Scrapyard -10/Materials (discovered 1 exit: [*Mat]) History --------- Turn | Location | Event 8 | -11/Scrapyard | Discovered new exit (range 16) 165 | -11/Scrapyard | Entered Materials 300 | -10/Materials | Build established: Mutant 664 | -10/Materials | Crushed by falling debris 664 | -10/Materials | Core integrity fell below 50% 690 | -10/Materials | Lost 4 parts (1p2n1u) 766 | -10/Materials | Core integrity fell below 20% 1191 | -10/Materials | Discovered new exit (range 16) 1276 | -10/Materials | Destroyed by G-34 Mercenary with Small Laser Last Messages --------------- 01143_ Dropped Aluminum Leg. 01144_ K-01 Serf collects debris. 01146_ R-06 Scavenger collects Aluminum Leg. 01146_ Acquired 4 matter. 01147_ K-01 Serf collects debris. 01149_ R-06 Scavenger collects Ion Engine. 01150_ K-01 Serf collects debris. 01154_ Acquired 16 matter. 01157_ Dropped Med. Matter Pod. 01158_ Acquired Lgt. Nuclear Core. 01172_ Connecting with Terminal... 01191_ EXIT=FOUND 01194_ O-16 Technician: "IFF HANDSHAKE FAILED. SECURING TERMINAL." 01200_ Destroyed Datajack. 01204_ O-16 Technician uses terminal to summon reinforcements. 01204_ ALERT: Hostiles spotted, dispatching reinforcements to Terminal M007. 01204_ O-16 Technician locks terminal. Map ----- +----------------------------------------------------+ | ???????????????????????????????? | | ???????????????????????????????? | | ???????????????????????????????? | | ???????????????????????????????? | | ???????????????????????????????? | | #??????????????????????????????? | | #??????????????????????????????? | | #??????????????????????????????? | | #??????????????????????????????? | | #??????????????????????????????? | | #??????????????????????????????? | | #??????????????????????????????? | | #####??????###########?????????? | | !!#??????# #?????????? | | !!#??????# """"""" #?????????? | | !!#??????# """"""" #?????????? | | !!#??????# """"""" #?????????? | | #??????# """"""" #?????????? | | #??????# "" """" #?????????? | | /#########??# *=!*! #?????????? | | #??# ! = #?#######?? | | ########/####### #?? | | # % "" #?? | | """ """ / = g T #?? | | """ """ # g #?? | | """ """ ### ############@ #?? | | #?# #??????????## ##?? | | #?# #???????????# #??? | | ##########?# #???????????# #??? | | ???????????# #?#########?# #??? | | ???????????# #?# !!! ?# #??? | | ???????????# #?# !!! # #??? | | ???????????? ??# !!! # #??? | | +#?????????? ??# + #??? | | #??????????+????######### #??? | | #???????????????????????# #??? | | #???????????????????????# #??? | | ########????????????????# #??? | | # """" #????????????????# #??? | | # ""T" #????????????????# #??? | | # #????????????????# #??? | | # #????????????????# #??? | | # #????????????????# #??? | | # #????????????????+ #??? | | + #????????????????# #??? | | # """ #????????????????? #??? | | ## """ #????????????????? #??? | | ?# """ #????????????????? #??? | | ?# """ #????????????????? #??? | | ?# """ #????????????????? < #??? | +----------------------------------------------------+ Best States ------------- Heat Dissipation 35 Energy Generation 14 Energy Capacity 250 Matter Stores 400 Matter Capacity 400 Sight Range 16 Terrain Scan Density 10 Armor Coverage 225 Evasion (%) 55 Targeting Accuracy 5 Recoil Reduction 2 Offensive Hacking 10 Item Schematics ----------------- None Robot Schematics ------------------ None Fabricated ------------ Nothing Alien Tech Used ----------------- None Achievements -------------- None Challenges ------------ None Game ------ Seed DeuteriumContainmentBank Manual? 0 Play Time 00:17:12 Cumulative 6.5 hours Start 2024.04.14 @ 19:42:26 End 2024.04.14 @ 19:56:33 Sessions 1 Manual Loads 0 Difficulty Rogue Special Mode None Game No. 7 Rogue 7 Adventurer 0 Explorer 0 Win Type - Total 0 Types 0/0/0/0/0/0/0/0/0 Lore% 4 Gallery% 12 Achievement% 10 Wizard Run 0 Options --------- Layout 1 ASCII 0 Keyboard 0 Movement Mouse Keybinds 0 Fullscreen 2 Font 32/SmallcapsGlow Map View 50x35 Zoom Use 0% Tactical HUD 1 Map Filters NONE Filters NONE Steam 1 RUN: 3eb4ad31-56e5-484e-9c3b-ab5c7556cafa